[Event "Titled Tuesday Blitz January 11 2022"]
[White "Svane, Rasmus"]
[Black "Rasulov, Vugar"]
[WhiteFideId "4657101"]
[BlackFideId "13402390"]
[WhiteElo "2645"]
[BlackElo "2560"]
[Result "1-0"]
[Round "09"]
[TimeControl "180+1"]
[Date "2022.01.11"]
[WhiteClock "0:00:32"]
[BlackClock "0:00:46"]

1. Nf3 {[%clk 0:03:00]}  b6 {[%clk 0:02:58]} 2. g3 {[%clk 0:02:59]}  Bb7 {[%clk 0:02:58]} 3. Bg2 {[%clk 0:03:00]}  g6 {[%clk 0:02:59]} 4. O-O {[%clk 0:03:01]}  Bg7 {[%clk 0:03:00]} 5. d4 {[%clk 0:03:01]}  Nf6 {[%clk 0:02:59]} 6. c4 {[%clk 0:03:02]}  O-O {[%clk 0:02:59]} 7. Re1 {[%clk 0:03:03]}  d5 {[%clk 0:02:57]} 8. cxd5 {[%clk 0:03:03]}  Nxd5 {[%clk 0:02:54]} 9. e4 {[%clk 0:03:02]}  Nf6 {[%clk 0:02:53]} 10. Nc3 {[%clk 0:03:02]}  e6 {[%clk 0:02:51]} 11. Bf4 {[%clk 0:03:02]}  Na6 {[%clk 0:02:46]} 12. Qe2 {[%clk 0:02:09]}  c5 {[%clk 0:02:38]} 13. Rad1 {[%clk 0:02:09]}  Nh5 {[%clk 0:01:56]} 14. Bg5 {[%clk 0:01:58]}  Qb8 {[%clk 0:01:45]} 15. d5 {[%clk 0:01:55]}  exd5 {[%clk 0:01:44]} 16. exd5 {[%clk 0:01:47]}  h6 {[%clk 0:01:41]} 17. Be7 {[%clk 0:01:47]}  Nb4 {[%clk 0:01:31]} 18. d6 {[%clk 0:01:26]}  Ba6 {[%clk 0:01:25]} 19. Qd2 {[%clk 0:01:19]}  Nc6 {[%clk 0:01:10]} 20. Bxf8 {[%clk 0:01:08]}  Qxf8 {[%clk 0:01:11]} 21. d7 {[%clk 0:00:48]}  Rd8 {[%clk 0:01:11]} 22. Qd6 {[%clk 0:00:48]}  Nd4 {[%clk 0:01:07]} 23. Qxf8+ {[%clk 0:00:38]}  Kxf8 {[%clk 0:01:08]} 24. Nxd4 {[%clk 0:00:37]}  cxd4 {[%clk 0:01:07]} 25. Bc6 {[%clk 0:00:37]}  Nf6 {[%clk 0:00:54]} 26. Rxd4 {[%clk 0:00:36]}  b5 {[%clk 0:00:47]} 27. Rd6 {[%clk 0:00:34]}  b4 {[%clk 0:00:46]} 28. Nd5 {[%clk 0:00:32]} 1-0


[Site "https://www.chess.com"]

[Event "Titled Tuesday Blitz January 11 2022"]
[White "Taboas Rodriguez, Daniel"]
[Black "Kosakowski, Jakub"]
[WhiteFideId "2208466"]
[BlackFideId "1185080"]
[WhiteElo "2429"]
[BlackElo "2476"]
[Result "0-1"]
[Round "09"]
[TimeControl "180+1"]
[Date "2022.01.11"]
[WhiteClock "0:01:06"]
[BlackClock "0:00:07"]

1. d4 {[%clk 0:02:44]}  Nf6 {[%clk 0:02:47]} 2. Nf3 {[%clk 0:02:45]}  e6 {[%clk 0:02:47]} 3. c4 {[%clk 0:02:44]}  b6 {[%clk 0:02:46]} 4. Nc3 {[%clk 0:02:44]}  Bb4 {[%clk 0:02:46]} 5. Qc2 {[%clk 0:02:45]}  Bb7 {[%clk 0:02:46]} 6. a3 {[%clk 0:02:46]}  Bxc3+ {[%clk 0:02:46]} 7. Qxc3 {[%clk 0:02:47]}  O-O {[%clk 0:02:45]} 8. g3 {[%clk 0:02:46]}  d5 {[%clk 0:02:41]} 9. Bg2 {[%clk 0:02:46]}  dxc4 {[%clk 0:02:40]} 10. Qxc4 {[%clk 0:02:45]}  Nbd7 {[%clk 0:02:41]} 11. O-O {[%clk 0:02:45]}  c5 {[%clk 0:02:41]} 12. Rd1 {[%clk 0:02:42]}  Rc8 {[%clk 0:02:39]} 13. Bf4 {[%clk 0:02:39]}  Bd5 {[%clk 0:02:31]} 14. Qa6 {[%clk 0:02:39]}  cxd4 {[%clk 0:02:14]} 15. Rxd4 {[%clk 0:02:36]}  Nc5 {[%clk 0:02:09]} 16. Qxa7 {[%clk 0:02:18]}  Nb3 {[%clk 0:02:08]} 17. Rad1 {[%clk 0:02:09]}  Nxd4 {[%clk 0:02:07]} 18. Rxd4 {[%clk 0:02:10]}  Ra8 {[%clk 0:01:21]} 19. Qc7 {[%clk 0:02:08]}  Qxc7 {[%clk 0:01:22]} 20. Bxc7 {[%clk 0:02:09]}  Rfc8 {[%clk 0:01:22]} 21. Bxb6 {[%clk 0:02:06]}  Rc1+ {[%clk 0:00:57]} 22. Bf1 {[%clk 0:02:06]}  Rb8 {[%clk 0:00:57]} 23. Rb4 {[%clk 0:01:50]}  Bxf3 {[%clk 0:00:39]} 24. exf3 {[%clk 0:01:51]}  Nd5 {[%clk 0:00:39]} 25. Be3 {[%clk 0:01:51]}  Rxf1+ {[%clk 0:00:39]} 26. Kxf1 {[%clk 0:01:51]}  Nxb4 {[%clk 0:00:40]} 27. axb4 {[%clk 0:01:51]}  Rxb4 {[%clk 0:00:41]} 28. Bc1 {[%clk 0:01:51]}  Kf8 {[%clk 0:00:37]} 29. Ke2 {[%clk 0:01:50]}  Ke7 {[%clk 0:00:38]} 30. Kd2 {[%clk 0:01:46]}  Kd6 {[%clk 0:00:38]} 31. Kc3 {[%clk 0:01:45]}  Kc5 {[%clk 0:00:38]} 32. Be3+ {[%clk 0:01:42]}  Kb5 {[%clk 0:00:38]} 33. f4 {[%clk 0:01:41]}  Ka4 {[%clk 0:00:37]} 34. Bd4 {[%clk 0:01:37]}  f6 {[%clk 0:00:35]} 35. g4 {[%clk 0:01:35]}  Rb8 {[%clk 0:00:30]} 36. Kc4 {[%clk 0:01:30]}  Ka5 {[%clk 0:00:25]} 37. h4 {[%clk 0:01:21]}  Ka6 {[%clk 0:00:19]} 38. Kc5 {[%clk 0:01:21]}  Rc8+ {[%clk 0:00:16]} 39. Kd6 {[%clk 0:01:19]}  Rd8+ {[%clk 0:00:17]} 40. Kc5 {[%clk 0:01:20]}  Kb7 {[%clk 0:00:17]} 41. b4 {[%clk 0:01:19]}  h5 {[%clk 0:00:17]} 42. g5 {[%clk 0:01:16]}  Rd5+ {[%clk 0:00:08]} 43. Kc4 {[%clk 0:01:16]}  Kc6 {[%clk 0:00:09]} 44. gxf6 {[%clk 0:01:14]}  gxf6 {[%clk 0:00:10]} 45. Bxf6 {[%clk 0:01:15]}  Rd2 {[%clk 0:00:10]} 46. Bd4 {[%clk 0:01:13]}  Rc2+ {[%clk 0:00:09]} 47. Kd3 {[%clk 0:01:13]}  Rc1 {[%clk 0:00:09]} 48. Ke4 {[%clk 0:01:11]}  Rc4 {[%clk 0:00:08]} 49. Ke5 {[%clk 0:01:09]}  Rxb4 {[%clk 0:00:08]} 50. Be3 {[%clk 0:01:07]}  Kd7 {[%clk 0:00:08]} 51. Kf6 {[%clk 0:01:08]}  Rb5 {[%clk 0:00:09]} 52. Bd4 {[%clk 0:01:05]}  Rf5+ {[%clk 0:00:09]} 53. Kg6 {[%clk 0:01:05]}  Rxf4 {[%clk 0:00:06]} 54. Bf6 {[%clk 0:01:05]}  Rxf2 {[%clk 0:00:06]} 55. Kxh5 {[%clk 0:01:06]}  Rxf6 {[%clk 0:00:06]} 56. Kg5 {[%clk 0:01:06]}  Ke7 {[%clk 0:00:07]} 0-1


[Site "https://www.chess.com"]

[Event "Titled Tuesday Blitz January 11 2022"]
[White "Terry, Renato"]
[Black "Howell, David W L"]
[WhiteFideId "3803457"]
[BlackFideId "410608"]
[WhiteElo "2577"]
[BlackElo "2559"]
[Result "1/2-1/2"]
[Round "09"]
[TimeControl "180+1"]
[Date "2022.01.11"]
[WhiteClock "0:00:16"]
[BlackClock "0:00:43"]

1. d4 {[%clk 0:03:00]}  d5 {[%clk 0:02:45]} 2. Bg5 {[%clk 0:03:00]}  g6 {[%clk 0:02:42]} 3. Nc3 {[%clk 0:02:56]}  Bg7 {[%clk 0:02:42]} 4. Qd2 {[%clk 0:02:54]}  h6 {[%clk 0:02:27]} 5. Bf4 {[%clk 0:02:53]}  Nf6 {[%clk 0:02:20]} 6. f3 {[%clk 0:02:48]}  c5 {[%clk 0:02:15]} 7. Nb5 {[%clk 0:02:39]}  Na6 {[%clk 0:02:09]} 8. e3 {[%clk 0:02:39]}  O-O {[%clk 0:02:08]} 9. Be5 {[%clk 0:02:17]}  Bd7 {[%clk 0:02:01]} 10. c3 {[%clk 0:02:13]}  Qb6 {[%clk 0:01:53]} 11. Na3 {[%clk 0:02:11]}  Nb8 {[%clk 0:01:46]} 12. dxc5 {[%clk 0:01:49]}  Qxc5 {[%clk 0:01:45]} 13. Qd4 {[%clk 0:01:49]}  Qa5 {[%clk 0:01:41]} 14. Qb4 {[%clk 0:01:13]}  Nc6 {[%clk 0:01:40]} 15. Qxa5 {[%clk 0:01:13]}  Nxa5 {[%clk 0:01:41]} 16. O-O-O {[%clk 0:01:08]}  e6 {[%clk 0:01:36]} 17. Ne2 {[%clk 0:01:02]}  Nc6 {[%clk 0:01:29]} 18. Bd6 {[%clk 0:01:02]}  Rfd8 {[%clk 0:01:25]} 19. Nd4 {[%clk 0:01:02]}  Nxd4 {[%clk 0:01:15]} 20. cxd4 {[%clk 0:01:02]}  Ba4 {[%clk 0:01:13]} 21. b3 {[%clk 0:00:55]}  Bxb3 {[%clk 0:01:13]} 22. axb3 {[%clk 0:00:55]}  Rxd6 {[%clk 0:01:13]} 23. Bd3 {[%clk 0:00:51]}  Rc6+ {[%clk 0:01:09]} 24. Kb2 {[%clk 0:00:49]}  a6 {[%clk 0:01:05]} 25. Rc1 {[%clk 0:00:48]}  Rac8 {[%clk 0:01:06]} 26. Rxc6 {[%clk 0:00:48]}  Rxc6 {[%clk 0:01:07]} 27. Nc2 {[%clk 0:00:48]}  Bf8 {[%clk 0:01:06]} 28. h3 {[%clk 0:00:39]}  Ne8 {[%clk 0:01:04]} 29. h4 {[%clk 0:00:35]}  Kg7 {[%clk 0:01:03]} 30. h5 {[%clk 0:00:35]}  g5 {[%clk 0:01:03]} 31. g3 {[%clk 0:00:35]}  f5 {[%clk 0:00:58]} 32. g4 {[%clk 0:00:33]}  fxg4 {[%clk 0:00:51]} 33. fxg4 {[%clk 0:00:34]}  Bd6 {[%clk 0:00:50]} 34. Rg1 {[%clk 0:00:33]}  Rc7 {[%clk 0:00:49]} 35. e4 {[%clk 0:00:31]}  dxe4 {[%clk 0:00:43]} 36. Bxe4 {[%clk 0:00:31]}  Nf6 {[%clk 0:00:43]} 37. Bf3 {[%clk 0:00:29]}  e5 {[%clk 0:00:36]} 38. Re1 {[%clk 0:00:26]}  e4 {[%clk 0:00:34]} 39. Bxe4 {[%clk 0:00:19]}  Nxg4 {[%clk 0:00:32]} 40. Bf3 {[%clk 0:00:20]}  Nf6 {[%clk 0:00:32]} 41. Ne3 {[%clk 0:00:20]}  Bb4 {[%clk 0:00:23]} 42. Nf5+ {[%clk 0:00:21]}  Kh7 {[%clk 0:00:23]} 43. Re6 {[%clk 0:00:21]}  Rf7 {[%clk 0:00:23]} 44. Bxb7 {[%clk 0:00:17]}  g4 {[%clk 0:00:19]} 45. Bxa6 {[%clk 0:00:17]}  Be1 {[%clk 0:00:19]} 46. Bd3 {[%clk 0:00:17]}  Bf2 {[%clk 0:00:15]} 47. Nd6+ {[%clk 0:00:15]}  Kg7 {[%clk 0:00:15]} 48. Nxf7 {[%clk 0:00:14]}  Bxd4+ {[%clk 0:00:16]} 49. Kc2 {[%clk 0:00:14]}  Kxf7 {[%clk 0:00:17]} 50. Rd6 {[%clk 0:00:07]}  Bf2 {[%clk 0:00:17]} 51. Kd2 {[%clk 0:00:04]}  g3 {[%clk 0:00:16]} 52. Ke2 {[%clk 0:00:03]}  Nxh5 {[%clk 0:00:16]} 53. Bg6+ {[%clk 0:00:03]}  Ke7 {[%clk 0:00:17]} 54. Bxh5 {[%clk 0:00:03]}  Kxd6 {[%clk 0:00:17]} 55. Bf3 {[%clk 0:00:03]}  Kc5 {[%clk 0:00:18]} 56. Kf1 {[%clk 0:00:02]}  Kd4 {[%clk 0:00:18]} 57. Kg2 {[%clk 0:00:03]}  Ke3 {[%clk 0:00:19]} 58. Bg4 {[%clk 0:00:03]}  Kf4 {[%clk 0:00:19]} 59. Bh3 {[%clk 0:00:03]}  Kg5 {[%clk 0:00:20]} 60. Bd7 {[%clk 0:00:03]}  h5 {[%clk 0:00:21]} 61. Bh3 {[%clk 0:00:04]}  h4 {[%clk 0:00:22]} 62. Bc8 {[%clk 0:00:05]}  Bb6 {[%clk 0:00:22]} 63. Bh3 {[%clk 0:00:06]}  Bd8 {[%clk 0:00:23]} 64. Bc8 {[%clk 0:00:06]}  Kf4 {[%clk 0:00:24]} 65. Bd7 {[%clk 0:00:07]}  Ke5 {[%clk 0:00:25]} 66. Bh3 {[%clk 0:00:07]}  Kd6 {[%clk 0:00:25]} 67. Bg4 {[%clk 0:00:08]}  Kc5 {[%clk 0:00:26]} 68. Bh3 {[%clk 0:00:09]}  Kb4 {[%clk 0:00:27]} 69. Be6 {[%clk 0:00:09]}  Bf6 {[%clk 0:00:27]} 70. Bc4 {[%clk 0:00:10]}  Kc5 {[%clk 0:00:27]} 71. Bf7 {[%clk 0:00:10]}  Kd4 {[%clk 0:00:28]} 72. Bc4 {[%clk 0:00:10]}  Ke4 {[%clk 0:00:28]} 73. Be6 {[%clk 0:00:10]}  Ke5 {[%clk 0:00:29]} 74. Bh3 {[%clk 0:00:10]}  Kd6 {[%clk 0:00:29]} 75. Bg4 {[%clk 0:00:10]}  Kc5 {[%clk 0:00:30]} 76. Bh3 {[%clk 0:00:11]}  Kb4 {[%clk 0:00:31]} 77. Be6 {[%clk 0:00:11]}  Be7 {[%clk 0:00:31]} 78. Bd5 {[%clk 0:00:11]}  Kc3 {[%clk 0:00:32]} 79. Be6 {[%clk 0:00:12]}  Kd4 {[%clk 0:00:33]} 80. Bc4 {[%clk 0:00:12]}  Ke5 {[%clk 0:00:33]} 81. Ba6 {[%clk 0:00:11]}  Kd4 {[%clk 0:00:31]} 82. Bc8 {[%clk 0:00:11]}  Kc3 {[%clk 0:00:32]} 83. Be6 {[%clk 0:00:12]}  Kb4 {[%clk 0:00:33]} 84. Bc4 {[%clk 0:00:12]}  Kc5 {[%clk 0:00:34]} 85. Be6 {[%clk 0:00:12]}  Kb6 {[%clk 0:00:35]} 86. Bc4 {[%clk 0:00:12]}  Bb4 {[%clk 0:00:35]} 87. Be6 {[%clk 0:00:13]}  Kc5 {[%clk 0:00:36]} 88. Bh3 {[%clk 0:00:14]}  Kd4 {[%clk 0:00:37]} 89. Bg4 {[%clk 0:00:14]}  Ke5 {[%clk 0:00:38]} 90. Bh3 {[%clk 0:00:15]}  Kf4 {[%clk 0:00:39]} 91. Bc8 {[%clk 0:00:15]}  Ke3 {[%clk 0:00:40]} 92. Bd7 {[%clk 0:00:15]}  Be7 {[%clk 0:00:40]} 93. Bc8 {[%clk 0:00:16]}  Kd4 {[%clk 0:00:41]} 94. Bd7 {[%clk 0:00:16]}  Kc5 {[%clk 0:00:42]} 95. Be6 {[%clk 0:00:16]}  Kb4 {[%clk 0:00:43]} 1/2-1/2


[Site "https://www.chess.com"]

[Event "Titled Tuesday Blitz January 11 2022"]
[White "Wagh Suyog"]
[Black "Weishaeutel, Moritz"]
[WhiteFideId "25071688"]
[BlackFideId "12967300"]
[WhiteElo "2181"]
[BlackElo "2002"]
[Result "1-0"]
[Round "09"]
[TimeControl "180+1"]
[Date "2022.01.11"]
[WhiteClock "0:01:12"]
[BlackClock "0:00:25"]

1. d4 {[%clk 0:03:00]}  Nf6 {[%clk 0:02:58]} 2. c4 {[%clk 0:03:00]}  e6 {[%clk 0:02:56]} 3. Nf3 {[%clk 0:02:59]}  d5 {[%clk 0:02:56]} 4. Nc3 {[%clk 0:02:59]}  c6 {[%clk 0:02:50]} 5. Bg5 {[%clk 0:02:53]}  Nbd7 {[%clk 0:02:50]} 6. e3 {[%clk 0:02:49]}  Qa5 {[%clk 0:02:48]} 7. Nd2 {[%clk 0:02:44]}  Ne4 {[%clk 0:02:39]} 8. Ndxe4 {[%clk 0:02:38]}  dxe4 {[%clk 0:02:40]} 9. Bh4 {[%clk 0:02:36]}  Bb4 {[%clk 0:02:27]} 10. Qc2 {[%clk 0:02:36]}  O-O {[%clk 0:02:27]} 11. Be2 {[%clk 0:02:35]}  e5 {[%clk 0:02:26]} 12. O-O {[%clk 0:02:31]}  exd4 {[%clk 0:02:26]} 13. exd4 {[%clk 0:02:31]}  Bxc3 {[%clk 0:02:25]} 14. bxc3 {[%clk 0:02:31]}  Re8 {[%clk 0:02:26]} 15. f3 {[%clk 0:02:25]}  Qf5 {[%clk 0:02:16]} 16. Rae1 {[%clk 0:02:13]}  Nf6 {[%clk 0:02:09]} 17. Bxf6 {[%clk 0:02:12]}  gxf6 {[%clk 0:01:49]} 18. Bd3 {[%clk 0:02:11]}  Be6 {[%clk 0:01:25]} 19. fxe4 {[%clk 0:02:08]}  Qh5 {[%clk 0:01:26]} 20. Rxf6 {[%clk 0:02:06]}  Kg7 {[%clk 0:01:19]} 21. Qf2 {[%clk 0:02:05]}  Rg8 {[%clk 0:01:17]} 22. d5 {[%clk 0:02:00]}  Bd7 {[%clk 0:01:13]} 23. Rf1 {[%clk 0:01:56]}  Kh8 {[%clk 0:01:07]} 24. Rxf7 {[%clk 0:01:50]}  Rg6 {[%clk 0:00:25]} 25. Rxd7 {[%clk 0:01:12]}  Rag8 {[%clk 0:00:25]} 26. Qd4+ {[%clk 0:01:12]} 1-0


[Site "https://www.chess.com"]

[Event "Titled Tuesday Blitz January 11 2022"]
[White "Yang, Kaiqi"]
[Black "Kosteniuk, Alexandra"]
[WhiteFideId "8604398"]
[BlackFideId "4128125"]
[WhiteElo "2373"]
[BlackElo "2469"]
[Result "0-1"]
[Round "09"]
[TimeControl "180+1"]
[Date "2022.01.11"]
[WhiteClock "0:00:03"]
[BlackClock "0:00:20"]

1. c4 {[%clk 0:03:00]}  e5 {[%clk 0:02:59]} 2. Nc3 {[%clk 0:03:00]}  Nf6 {[%clk 0:02:59]} 3. Nf3 {[%clk 0:03:01]}  Nc6 {[%clk 0:02:59]} 4. e4 {[%clk 0:03:01]}  Bb4 {[%clk 0:02:59]} 5. d3 {[%clk 0:03:01]}  d6 {[%clk 0:02:58]} 6. a3 {[%clk 0:03:00]}  Ba5 {[%clk 0:02:53]} 7. b4 {[%clk 0:03:00]}  Bb6 {[%clk 0:02:53]} 8. Na4 {[%clk 0:03:00]}  O-O {[%clk 0:02:50]} 9. Nxb6 {[%clk 0:02:55]}  axb6 {[%clk 0:02:50]} 10. Bb2 {[%clk 0:02:55]}  Ne7 {[%clk 0:02:35]} 11. g3 {[%clk 0:02:53]}  Bd7 {[%clk 0:02:31]} 12. Bg2 {[%clk 0:02:52]}  Ba4 {[%clk 0:02:31]} 13. Qd2 {[%clk 0:02:49]}  b5 {[%clk 0:02:31]} 14. c5 {[%clk 0:02:38]}  Ng6 {[%clk 0:02:30]} 15. Rc1 {[%clk 0:02:32]}  Re8 {[%clk 0:02:29]} 16. O-O {[%clk 0:02:30]}  h6 {[%clk 0:01:59]} 17. Rfe1 {[%clk 0:02:25]}  Ra6 {[%clk 0:01:57]} 18. d4 {[%clk 0:02:18]}  exd4 {[%clk 0:01:51]} 19. Qxd4 {[%clk 0:02:11]}  dxc5 {[%clk 0:01:50]} 20. Qxd8 {[%clk 0:02:10]}  Rxd8 {[%clk 0:01:50]} 21. Rxc5 {[%clk 0:02:05]}  Ne8 {[%clk 0:01:49]} 22. Nd4 {[%clk 0:01:54]}  c6 {[%clk 0:01:42]} 23. Nf5 {[%clk 0:01:49]}  Rd2 {[%clk 0:01:42]} 24. Bc3 {[%clk 0:01:44]}  Rd1 {[%clk 0:01:40]} 25. Bf3 {[%clk 0:01:32]}  Rd3 {[%clk 0:01:34]} 26. Kg2 {[%clk 0:01:27]}  Bb3 {[%clk 0:01:30]} 27. h4 {[%clk 0:01:13]}  Bc4 {[%clk 0:01:26]} 28. h5 {[%clk 0:01:12]}  Rxc3 {[%clk 0:01:15]} 29. hxg6 {[%clk 0:01:09]}  fxg6 {[%clk 0:01:16]} 30. Ne3 {[%clk 0:00:51]}  Raxa3 {[%clk 0:01:13]} 31. Rd1 {[%clk 0:00:41]}  Rd3 {[%clk 0:01:10]} 32. Rc1 {[%clk 0:00:24]}  Rd2 {[%clk 0:01:04]} 33. Nxc4 {[%clk 0:00:17]}  bxc4 {[%clk 0:01:05]} 34. R5xc4 {[%clk 0:00:17]}  Raa2 {[%clk 0:01:04]} 35. Rf1 {[%clk 0:00:17]}  Nd6 {[%clk 0:00:57]} 36. Rc3 {[%clk 0:00:15]}  Nf7 {[%clk 0:00:55]} 37. b5 {[%clk 0:00:14]}  Rac2 {[%clk 0:00:49]} 38. Rxc2 {[%clk 0:00:14]}  Rxc2 {[%clk 0:00:50]} 39. bxc6 {[%clk 0:00:14]}  bxc6 {[%clk 0:00:50]} 40. Ra1 {[%clk 0:00:10]}  Ne5 {[%clk 0:00:50]} 41. Bd1 {[%clk 0:00:10]}  Rb2 {[%clk 0:00:49]} 42. Ra5 {[%clk 0:00:10]}  Nd3 {[%clk 0:00:48]} 43. Kf3 {[%clk 0:00:06]}  Kf7 {[%clk 0:00:44]} 44. Ba4 {[%clk 0:00:06]}  Ke6 {[%clk 0:00:37]} 45. Ke3 {[%clk 0:00:05]}  Nb4 {[%clk 0:00:36]} 46. Rc5 {[%clk 0:00:04]}  Kd6 {[%clk 0:00:35]} 47. Rc3 {[%clk 0:00:04]}  Ra2 {[%clk 0:00:32]} 48. Bb3 {[%clk 0:00:04]}  Ra3 {[%clk 0:00:27]} 49. f4 {[%clk 0:00:04]}  Ke7 {[%clk 0:00:21]} 50. e5 {[%clk 0:00:04]}  Nd5+ {[%clk 0:00:21]} 51. Kd4 {[%clk 0:00:02]}  Nxc3 {[%clk 0:00:21]} 52. Kxc3 {[%clk 0:00:03]}  Ra1 {[%clk 0:00:20]} 53. Kd4 {[%clk 0:00:03]}  Rg1 {[%clk 0:00:19]} 54. Kc5 {[%clk 0:00:03]}  Rxg3 {[%clk 0:00:20]} 55. Kxc6 {[%clk 0:00:03]}  Rxb3 {[%clk 0:00:20]} 0-1


[Site "https://www.chess.com"]

[Event "Titled Tuesday Blitz January 11 2022"]
[White "Yoo, Christopher Woojin"]
[Black "Preotu, Razvan"]
[WhiteFideId "30909694"]
[BlackFideId "2613280"]
[WhiteElo "2105"]
[BlackElo "2407"]
[Result "1-0"]
[Round "09"]
[TimeControl "180+1"]
[Date "2022.01.11"]
[WhiteClock "0:00:03"]
[BlackClock "0:00:03"]

1. e4 {[%clk 0:02:08]}  c5 {[%clk 0:02:56]} 2. Nf3 {[%clk 0:02:08]}  d6 {[%clk 0:02:57]} 3. d4 {[%clk 0:02:08]}  cxd4 {[%clk 0:02:58]} 4. Nxd4 {[%clk 0:02:09]}  Nf6 {[%clk 0:02:57]} 5. Nc3 {[%clk 0:02:10]}  a6 {[%clk 0:02:57]} 6. h4 {[%clk 0:02:10]}  e5 {[%clk 0:02:56]} 7. Nf5 {[%clk 0:02:10]}  d5 {[%clk 0:02:51]} 8. Qf3 {[%clk 0:02:10]}  d4 {[%clk 0:02:39]} 9. Nd5 {[%clk 0:02:09]}  Be6 {[%clk 0:02:19]} 10. Nxf6+ {[%clk 0:01:47]}  gxf6 {[%clk 0:02:20]} 11. Bd3 {[%clk 0:01:45]}  Qa5+ {[%clk 0:02:16]} 12. Bd2 {[%clk 0:01:39]}  Bb4 {[%clk 0:02:14]} 13. c3 {[%clk 0:01:33]}  dxc3 {[%clk 0:02:10]} 14. bxc3 {[%clk 0:01:34]}  Bxc3 {[%clk 0:02:09]} 15. Bb5+ {[%clk 0:01:34]}  axb5 {[%clk 0:02:04]} 16. Bxc3 {[%clk 0:01:33]}  b4 {[%clk 0:01:59]} 17. Bd2 {[%clk 0:01:26]}  Qa3 {[%clk 0:01:54]} 18. Qe2 {[%clk 0:01:25]}  Bxf5 {[%clk 0:01:41]} 19. exf5 {[%clk 0:01:21]}  Nc6 {[%clk 0:01:41]} 20. O-O {[%clk 0:01:19]}  Nd4 {[%clk 0:01:39]} 21. Qe4 {[%clk 0:01:16]}  Qb2 {[%clk 0:01:02]} 22. Rfd1 {[%clk 0:01:01]}  Qc2 {[%clk 0:00:52]} 23. Qxc2 {[%clk 0:00:34]}  Nxc2 {[%clk 0:00:51]} 24. Rab1 {[%clk 0:00:32]}  Rd8 {[%clk 0:00:23]} 25. Kf1 {[%clk 0:00:11]}  O-O {[%clk 0:00:20]} 26. Rbc1 {[%clk 0:00:12]}  Rc8 {[%clk 0:00:19]} 27. Bh6 {[%clk 0:00:12]}  Rfe8 {[%clk 0:00:18]} 28. Rd7 {[%clk 0:00:10]}  Nd4 {[%clk 0:00:16]} 29. Rxc8 {[%clk 0:00:09]}  Rxc8 {[%clk 0:00:17]} 30. g4 {[%clk 0:00:10]}  b3 {[%clk 0:00:12]} 31. axb3 {[%clk 0:00:10]}  Nxb3 {[%clk 0:00:13]} 32. Rxb7 {[%clk 0:00:09]}  Nd4 {[%clk 0:00:13]} 33. Kg2 {[%clk 0:00:08]}  Ne2 {[%clk 0:00:13]} 34. Rb6 {[%clk 0:00:06]}  Nf4+ {[%clk 0:00:10]} 35. Bxf4 {[%clk 0:00:06]}  exf4 {[%clk 0:00:11]} 36. Rxf6 {[%clk 0:00:06]}  Rc3 {[%clk 0:00:11]} 37. Ra6 {[%clk 0:00:06]}  Kg7 {[%clk 0:00:10]} 38. Ra4 {[%clk 0:00:06]}  f3+ {[%clk 0:00:07]} 39. Kg3 {[%clk 0:00:07]}  h6 {[%clk 0:00:03]} 40. Rf4 {[%clk 0:00:06]}  Rc1 {[%clk 0:00:04]} 41. Rxf3 {[%clk 0:00:06]}  Ra1 {[%clk 0:00:05]} 42. g5 {[%clk 0:00:03]}  hxg5 {[%clk 0:00:06]} 43. hxg5 {[%clk 0:00:04]}  Rg1+ {[%clk 0:00:05]} 44. Kf4 {[%clk 0:00:04]}  Rh1 {[%clk 0:00:06]} 45. Ra3 {[%clk 0:00:04]}  Rh4+ {[%clk 0:00:06]} 46. Kg3 {[%clk 0:00:04]}  Rd4 {[%clk 0:00:05]} 47. f4 {[%clk 0:00:04]}  Rd5 {[%clk 0:00:04]} 48. Kg4 {[%clk 0:00:04]}  Rd1 {[%clk 0:00:05]} 49. f6+ {[%clk 0:00:04]}  Kh7 {[%clk 0:00:05]} 50. Rh3+ {[%clk 0:00:04]}  Kg8 {[%clk 0:00:05]} 51. Re3 {[%clk 0:00:04]}  Rd5 {[%clk 0:00:02]} 52. Re8+ {[%clk 0:00:03]}  Kh7 {[%clk 0:00:03]} 53. Rf8 {[%clk 0:00:03]}  Rd7 {[%clk 0:00:03]} 54. Kh5 {[%clk 0:00:03]}  Ra7 {[%clk 0:00:03]} 55. f5 {[%clk 0:00:03]}  Rb7 {[%clk 0:00:03]} 56. g6+ {[%clk 0:00:02]}  fxg6+ {[%clk 0:00:03]} 57. fxg6# {[%clk 0:00:03]} 1-0


[Site "https://www.chess.com"]

[Event "Titled Tuesday Blitz January 11 2022"]
[White "Araujo Sanchez, Josue"]
[Black "Boyer, Mahel"]
[WhiteFideId "6416896"]
[BlackFideId "45102422"]
[WhiteElo "2357"]
[BlackElo "2328"]
[Result "0-1"]
[Round "10"]
[TimeControl "180+1"]
[Date "2022.01.11"]
[WhiteClock "0:00:01"]
[BlackClock "0:00:11"]

1. e4 {[%clk 0:03:00]}  Nc6 {[%clk 0:02:58]} 2. Nf3 {[%clk 0:03:00]}  d5 {[%clk 0:02:59]} 3. exd5 {[%clk 0:03:00]}  Qxd5 {[%clk 0:03:00]} 4. Nc3 {[%clk 0:03:00]}  Qh5 {[%clk 0:03:01]} 5. Bb5 {[%clk 0:02:59]}  Bg4 {[%clk 0:03:01]} 6. Qe2 {[%clk 0:02:56]}  e6 {[%clk 0:02:57]} 7. Bxc6+ {[%clk 0:02:39]}  bxc6 {[%clk 0:02:58]} 8. Qe4 {[%clk 0:02:34]}  Bxf3 {[%clk 0:02:41]} 9. gxf3 {[%clk 0:02:35]}  Ne7 {[%clk 0:02:36]} 10. d3 {[%clk 0:02:29]}  Nd5 {[%clk 0:02:26]} 11. Bd2 {[%clk 0:02:12]}  Bc5 {[%clk 0:02:11]} 12. Na4 {[%clk 0:01:51]}  Bd6 {[%clk 0:01:53]} 13. c4 {[%clk 0:01:43]}  Ne7 {[%clk 0:01:40]} 14. Bc3 {[%clk 0:01:34]}  O-O {[%clk 0:01:31]} 15. h4 {[%clk 0:01:32]}  Nf5 {[%clk 0:01:30]} 16. O-O-O {[%clk 0:01:29]}  c5 {[%clk 0:01:27]} 17. Rdg1 {[%clk 0:01:23]}  h6 {[%clk 0:01:27]} 18. Rg4 {[%clk 0:01:08]}  Rae8 {[%clk 0:01:21]} 19. Rhg1 {[%clk 0:01:03]}  f6 {[%clk 0:01:21]} 20. Rg6 {[%clk 0:01:00]}  Kh7 {[%clk 0:01:17]} 21. R6g4 {[%clk 0:00:59]}  Kh8 {[%clk 0:01:13]} 22. Kb1 {[%clk 0:00:54]}  Re7 {[%clk 0:01:08]} 23. a3 {[%clk 0:00:51]}  Rb8 {[%clk 0:00:57]} 24. Ka2 {[%clk 0:00:50]}  Rg8 {[%clk 0:00:44]} 25. Bxf6 {[%clk 0:00:48]}  Ree8 {[%clk 0:00:37]} 26. Bc3 {[%clk 0:00:47]}  Bf8 {[%clk 0:00:21]} 27. Qe5 {[%clk 0:00:44]}  Qf7 {[%clk 0:00:20]} 28. h5 {[%clk 0:00:39]}  Bd6 {[%clk 0:00:19]} 29. Qe4 {[%clk 0:00:31]}  Qxh5 {[%clk 0:00:20]} 30. Qe1 {[%clk 0:00:21]}  Qf7 {[%clk 0:00:19]} 31. Rh1 {[%clk 0:00:20]}  Kh7 {[%clk 0:00:20]} 32. Qe4 {[%clk 0:00:19]}  Re7 {[%clk 0:00:18]} 33. Qc6 {[%clk 0:00:19]}  Nd4 {[%clk 0:00:18]} 34. Bxd4 {[%clk 0:00:16]}  cxd4 {[%clk 0:00:19]} 35. c5 {[%clk 0:00:15]}  Be5 {[%clk 0:00:19]} 36. Re4 {[%clk 0:00:14]}  Qxf3 {[%clk 0:00:18]} 37. Rhe1 {[%clk 0:00:11]}  Bf6 {[%clk 0:00:18]} 38. Qb5 {[%clk 0:00:10]}  c6 {[%clk 0:00:17]} 39. Qc4 {[%clk 0:00:10]}  e5 {[%clk 0:00:17]} 40. R1e2 {[%clk 0:00:08]}  Rb8 {[%clk 0:00:17]} 41. Qc2 {[%clk 0:00:07]}  Reb7 {[%clk 0:00:16]} 42. Qc4 {[%clk 0:00:05]}  a5 {[%clk 0:00:16]} 43. Rc2 {[%clk 0:00:05]}  Rb3 {[%clk 0:00:15]} 44. Rd2 {[%clk 0:00:04]}  R8b5 {[%clk 0:00:14]} 45. Re1 {[%clk 0:00:04]}  Bg5 {[%clk 0:00:14]} 46. Rdd1 {[%clk 0:00:03]}  Qxf2 {[%clk 0:00:15]} 47. Qc1 {[%clk 0:00:02]}  Qf7 {[%clk 0:00:13]} 48. Qc2 {[%clk 0:00:02]}  Be3 {[%clk 0:00:12]} 49. Ka1 {[%clk 0:00:01]}  Qd5 {[%clk 0:00:12]} 50. Rf1 {[%clk 0:00:01]}  Bf4 {[%clk 0:00:11]} 51. Rfe1 {[%clk 0:00:01]}  Bg3 {[%clk 0:00:11]} 0-1


[Site "https://www.chess.com"]